Cogmind - Beta 13 @@@ ROGUE MODE // 2024.07.17 @ 12:20:19 Player: Sionnis Result: Self-destructed Performance ------------- Evolutions (1) 500 Regions Visited (6) 1200 Robots Destroyed (36) 180 Value Destroyed (596) 596 Prototype IDs (31) 620 Alien Tech Used (0) 0 Bonus (300) 300 TOTAL SCORE: 3396 Bonus ------- Aligned with FarCom 300 Cogmind --------- Core Integrity 259/400 Matter 218/300 Energy 100/100 System Corruption 12% Temperature Cool (0) Movement Core (250) Ox4 Location -8/Mines Parts ------- > --- POWER (1) -------- (None) > --- PROPULSION (2) --- (None) > --- UTILITY (2) ------ Medium Storage Unit > --- WEAPON (4) ------- Assault Rifle Heavy Assault Rifle > --- INVENTORY (10) --- Light Ion Engine Light Treads Light Treads Light Treads Wheel Light Assault Rifle Light Assault Rifle Improved Assault Rifle Datajack Peak State ------------ > --- POWER ------------ Ion Engine > --- PROPULSION ------- Light Treads Light Treads > --- UTILITY ---------- Medium Storage Unit Light Armor Plating > --- WEAPON ----------- Latent Energy Streamer Assault Rifle Heavy Assault Rifle Improved Assault Rifle > --- INVENTORY -------- Light Ion Engine Light Treads Light Treads Light Treads Wheel Medium Laser Light Assault Rifle Light Assault Rifle Datajack [Rating: 21] Favorites ----------- Power Ion Engine Engine Ion Engine Propulsion Light Treads Treads Light Treads Wheel Wheel Utility Medium Storage Unit Storage Medium Storage Unit Processor Targeting Computer Protection Light Armor Plating Weapon Medium Laser Energy Gun Medium Laser Energy Cannon Latent Energy Streamer Ballistic Gun Light Assault Rifle Ballistic Cannon Light Cannon Special Melee Weapon Datajack Build | -11 -10 -10 -9 -9 -9 -8 ------- Run | Yrd Mat Min Mat Min Exi Min Slots Evolved 2 | . . . 2 . . . Power . | . . . . . . . Propulsion . | . . . . . . . Utility . | . . . . . . . Weapon 2 | . . . 2 . . . Parts Attached 25 | 6 3 4 7 . 2 3 Power 2 | 1 . 1 . . . . Engine 2 | 1 . 1 . . . . Core . | . . . . . . . Reactor . | . . . . . . . Propulsion 6 | 2 2 . . . 1 1 Treads 5 | 2 2 . . . . 1 Leg . | . . . . . . . Wheel 1 | . . . . . 1 . Hover . | . . . . . . . Flight . | . . . . . . . Utility 6 | 1 1 2 2 . . . Device . | . . . . . . . Storage 2 | 1 . 1 . . . . Processor 3 | . 1 1 1 . . . Hackware . | . . . . . . . Protection 1 | . . . 1 . . . Artifact . | . . . . . . . Weapon 11 | 2 . 1 5 . 1 2 Energy Gun 4 | 1 . . 2 . . 1 Energy Cannon 1 | . . . . . 1 . Ballistic Gun 4 | 1 . . 3 . . . Ballistic Cannon 1 | . . 1 . . . . Launcher . | . . . . . . . Special Weapon . | . . . . . . . Impact Weapon . | . . . . . . . Slashing Weapon . | . . . . . . . Piercing Weapon . | . . . . . . . Special Melee Weapon 1 | . . . . . . 1 Unidentified Prototypes 1 | . . . 1 . . . Parts Lost 8 | . 2 . . . . 6 Power 2 | . 1 . . . . 1 Propulsion 2 | . . . . . . 2 Utility 2 | . 1 . . . . 1 Weapon 2 | . . . . . . 2 Highest Loss Streak 6 | . 2 . . . . 6 To Critical Strikes . | . . . . . . . Average Slot Usage (%) 94 | . 93 77 99 100 100 95 Engine 10 | . 12 2 11 11 11 11 Treads 24 | . 28 28 22 22 20 22 Storage 12 | . 14 14 11 11 11 11 Processor 4 | . 9 3 6 . . . Protection 4 | . . . 4 11 11 8 Energy Gun 11 | . 14 14 22 . . . Energy Cannon 1 | . . . . . 5 11 Ballistic Gun 18 | . 14 10 10 33 33 30 Ballistic Cannon 5 | . . 3 11 11 6 . Naked Turns . | . . . . . . . Heaviest Build 36 | 11 11 20 29 29 36 36 Greatest Support 40 | 40 40 40 40 40 40 40 Greatest Overweight (x) 3 | . . . . . 3 . Average Overweight (x) . | . . . . . . . Largest Inventory Capacity 10 | 8 8 10 10 10 10 10 Average Capacity 9 | 7 8 8 10 10 10 10 Most Carried 9 | 3 8 8 7 9 9 9 Average Carried 7 | 2 6 7 6 8 9 9 Final Capacity 10 | 8 8 10 10 10 10 10 Final Carried 9 | 3 8 7 7 9 9 9 Class Distribution -------------------- 48% | Mutant 38% | Tank 13% | Gunner Dominant Class ---------------- Mutant | -10/Materials Mutant | -10/Mines Gunner | -9/Materials Tank | -9/Mines Tank | -9/Exiles Tank | -8/Mines Resources | -11 -10 -10 -9 -9 -9 -8 ----------- Run | Yrd Mat Min Mat Min Exi Min Matter Collected 558 | 164 160 22 186 26 . . Remotely . | . . . . . . . Salvage Created 1099 | . 557 . 462 80 . . Parts 67 | . 31 . 27 9 . . Haulers Intercepted 4 | . 2 . 2 . . . Recyclers Shooed . | . . . . . . . Parts Field Recycled . | . . . . . . . Retrieved Matter . | . . . . . . . Parts Self-Destructed . | . . . . . . . Prevented . | . . . . . . . Kills | -11 -10 -10 -9 -9 -9 -8 ------- Run | Yrd Mat Min Mat Min Exi Min Combat Hostiles Destroyed 24 | . 13 . 5 6 . . Guns 20 | . 13 . 3 4 . . Cannons 4 | . . . 2 2 . . Classes Destroyed 8 | . 3 . 5 . . . Worker 2 | . . . 2 . . . Builder 1 | . . . 1 . . . Hauler 4 | . 2 . 2 . . . Recycler 4 | . . . 4 . . . Watcher 1 | . . . 1 . . . Swarmer 13 | . 3 . 4 6 . . Grunt 10 | . 10 . . . . . Sentry 1 | . . . 1 . . . Best Kill Streak 9 | . 9 . 8 3 . . Combat Bots Only 9 | . 9 . 4 3 . . Max Kills in Single Turn 2 | . 1 . 2 2 . . Gunslinging . | . . . . . . . Exploded . | . . . . . . . Melee . | . . . . . . . Uniques/NPCs Destroyed . | . . . . . . . Combat | -11 -10 -10 -9 -9 -9 -8 -------- Run | Yrd Mat Min Mat Min Exi Min Hostile Shots Fired 138 | . 61 . 20 7 6 44 Missed 32 | . 13 . 4 1 3 11 Damage Taken 1634 | . 556 . 156 55 42 825 Core 245 | . 104 . 10 10 . 121 Absorbed by Shields . | . . . . . . . Core Remaining (%) 79 | 100 . 58 . . . . Volleys Fired 71 | . 45 . 17 4 2 3 Largest 4 | . 2 . 4 4 3 3 Hottest 200 | . 70 . 200 101 66 103 Shots Fired 179 | . 90 . 60 16 6 7 Gun 157 | . 90 . 43 12 6 6 Cannon 22 | . . . 17 4 . 1 Launcher . | . . . . . . . Special . | . . . . . . . Kinetic 100 | . 45 . 27 16 6 6 Thermal 78 | . 45 . 33 . . . Explosive . | . . . . . . . Electromagnetic 1 | . . . . . . 1 Robot Hit Streak 50 | . 50 . 6 2 . 6 Robot Miss Streak 3 | . 3 . 3 1 . 1 Penetration Max . | . . . . . . . Secondary Targets 3 | . 3 . . . . . Max Gunslinging Chain 1 | . 1 . . . . . Shots Hit Robots 119 | . 75 . 32 5 . 7 Core Hits 65 | . 32 . 26 6 . 1 Critical Kills 2 | . 1 . . 1 . . Critical Parts Destroyed . | . . . . . . . Critical Strikes 9 | . 6 . 2 1 . . Burn 6 | . 5 . 1 . . . Destroy 2 | . 1 . . 1 . . Blast 1 | . . . 1 . . . Melee Attacks 1 | . . . . . . 1 Impact . | . . . . . . . Slashing . | . . . . . . . Piercing . | . . . . . . . Sneak Attacks . | . . . . . . . Combat Hostiles . | . . . . . . . Follow-up Attacks . | . . . . . . . Damage Inflicted 1591 | . 824 . 548 132 . 87 Guns 1406 | . 818 . 421 100 . 67 Cannons 146 | . . . 114 32 . . Explosions 20 | . . . . . . 20 Melee . | . . . . . . . Ramming 19 | . 6 . 13 . . . Kinetic 700 | . 306 . 195 132 . 67 Thermal 852 | . 512 . 340 . . . Explosive . | . . . . . . . Electromagnetic 20 | . . . . . . 20 Impact . | . . . . . . . Slashing . | . . . . . . . Piercing . | . . . . . . . Highest Corruption 12 | . . . . . . 12 Average Corruption 5 | . . . . . . 5 Corruption Purged . | . . . . . . . Corruption Blocked . | . . . . . . . Overload Shots . | . . . . . . . Overflow Damage . | . . . . . . . Projectiles . | . . . . . . . Explosions . | . . . . . . . Melee . | . . . . . . . Knockbacks . | . . . . . . . Impact . | . . . . . . . Kinetic . | . . . . . . . Secondary . | . . . . . . . Self-Inflicted Damage 37 | . . . . . . 37 Shots 1 | . . . . . . 1 Rammed 2 | . 1 . 1 . . . Targets Rammed 2 | . 1 . 1 . . . Kicked . | . . . . . . . Crushed . | . . . . . . . Highest Temperature 320 | . 108 . 320 78 12 33 Average Temperature 80 | . 35 . 142 34 7 18 Received Heat Transfer 303 | . 285 . 18 . . . Effects 1 | . . . 1 . . . Energy Bleed 1 | . . . 1 . . . Siege Activations . | . . . . . . . Robots Corrupted . | . . . . . . . Combat Hostiles . | . . . . . . . Parts Fried . | . . . . . . . Impact Corruptions . | . . . . . . . Robots Melted . | . . . . . . . Combat Hostiles . | . . . . . . . Parts Melted 7 | . 5 . 2 . . . Heat Transferred 2649 | . 1813 . 836 . . . Parts Sabotaged . | . . . . . . . Parts Stolen . | . . . . . . . Parts Stripped . | . . . . . . . Power Chain Reactions . | . . . . . . . Latent Energy Used 65 | . . . . . . 65 LE Corruption 1 | . . . . . . 1 Alert | -11 -10 -10 -9 -9 -9 -8 ------- Run | Yrd Mat Min Mat Min Exi Min Peak Influence 260 | . 260 64 252 174 . . Initial 64 | . . 64 24 19 . . Average 91 | . 75 64 149 111 . . Maximum Alert Level 1 | . 1 . 1 . . . Low Security (%) 85 | 100 88 100 63 100 . 100 Level 1 14 | . 11 . 36 . . . Level 2 . | . . . . . . . Level 3 . | . . . . . . . Level 4 . | . . . . . . . Level 5 . | . . . . . . . High Security . | . . . . . . . Max Security . | . . . . . . . Squads Dispatched 2 | . 2 . . . . . Investigation 1 | . 1 . . . . . Extermination . | . . . . . . . Reinforcement 1 | . 1 . . . . . Assault . | . . . . . . . Garrison . | . . . . . . . Intercept . | . . . . . . . Searches Triggered . | . . . . . . . Construction Impeded . | . . . . . . . Haulers Reinforced . | . . . . . . . Active Scanning Responses . | . . . . . . . Cargo Convoy Interrupts . | . . . . . . . Stealth | -11 -10 -10 -9 -9 -9 -8 --------- Run | Yrd Mat Min Mat Min Exi Min Distress Signals 1 | . 1 . . . . . Communications Jammed . | . . . . . . . Distress Signals . | . . . . . . . Times Spotted 36 | . 19 . 8 4 4 1 Peak Tracking Total 9 | . 4 . 4 2 9 1 Tactical Retreats . | . . . . . . . Traps | -11 -10 -10 -9 -9 -9 -8 ------- Run | Yrd Mat Min Mat Min Exi Min Traps Triggered . | . . . . . . . Indirectly . | . . . . . . . Trap Hack Attempts . | . . . . . . . Triggered . | . . . . . . . Disarmed . | . . . . . . . Reprogrammed . | . . . . . . . Reused . | . . . . . . . Traps Extracted . | . . . . . . . Installed . | . . . . . . . Triggered . | . . . . . . . Machines | -11 -10 -10 -9 -9 -9 -8 ---------- Run | Yrd Mat Min Mat Min Exi Min Machines Disabled 1 | . . . . . 1 . Max in Single Turn 1 | . . . . . 1 . Machines Repaired . | . . . . . . . Machines Dismantled . | . . . . . . . Machines Sabotaged . | . . . . . . . Overloaded Fab Kills . | . . . . . . . Hacking | -11 -10 -10 -9 -9 -9 -8 --------- Run | Yrd Mat Min Mat Min Exi Min Machines Accessed 9 | . 5 . 3 . 1 . Terminals 8 | . 5 . 3 . . . Fabricators . | . . . . . . . Repair Stations . | . . . . . . . Recycling Units . | . . . . . . . Scanalyzers . | . . . . . . . Garrison Access . | . . . . . . . Total Hacks 17 | . 12 . 4 . 1 . Successful 7 | . 5 . 1 . 1 . Failed 10 | . 7 . 3 . . . Catastrophic 3 | . 1 . 2 . . . Database Lockouts . | . . . . . . . Manual 14 | . 10 . 3 . 1 . Terminals 16 | . 12 . 4 . . . Fabricators . | . . . . . . . Repair Stations . | . . . . . . . Recycling Units . | . . . . . . . Scanalyzers . | . . . . . . . Garrison Access . | . . . . . . . Terminal Hacks 6 | . 4 . 1 . 1 . Robot Analysis 2 | . 2 . . . . . Branch Access Points 2 | . 1 . 1 . . . Hauler Manifests 1 | . 1 . . . . . Derelict Proto ID Bank 1 | . . . . . 1 . Fabricator Hacks . | . . . . . . . Repair Station Hacks . | . . . . . . . Recycling Unit Hacks . | . . . . . . . Scanalyzer . | . . . . . . . Garrison Access Hacks . | . . . . . . . Unauthorized Hacks 1 | . 1 . . . . . Terminals 1 | . 1 . . . . . Operators 1 | . 1 . . . . . Fabricators . | . . . . . . . Repair Stations . | . . . . . . . Recycling Units . | . . . . . . . Scanalyzers . | . . . . . . . Garrison Access . | . . . . . . . Data Cores Recovered . | . . . . . . . Used . | . . . . . . . Hacking Detections 5 | . 2 . 3 . . . Full Trace Events 1 | . 1 . . . . . Feedback Events . | . . . . . . . Feedback Blocked . | . . . . . . . Robot Schematics Acquired . | . . . . . . . Robots Built . | . . . . . . . Authchips . | . . . . . . . Time . | . . . . . . . Total Robot Build Rating . | . . . . . . . Part Schematics Acquired . | . . . . . . . Parts Built . | . . . . . . . Authchips . | . . . . . . . Time . | . . . . . . . Total Part Build Rating . | . . . . . . . Parts Repaired . | . . . . . . . Time . | . . . . . . . Parts Recycled . | . . . . . . . Recycled Matter . | . . . . . . . Retrieved Matter . | . . . . . . . Retrieved Components . | . . . . . . . Parts Scanalyzed . | . . . . . . . Part Schematics Acquired . | . . . . . . . Parts Damaged . | . . . . . . . Bothacking | -11 -10 -10 -9 -9 -9 -8 ------------ Run | Yrd Mat Min Mat Min Exi Min Used RIF Installer . | . . . . . . . Robots Hacked 1 | . . . . . . 1 Non-combat . | . . . . . . . Combat 1 | . . . . . . 1 Robot Hacks Applied 1 | . . . . . . 1 parse_system 1 | . . . . . . 1 Relay Couplers Released . | . . . . . . . Fabnet Peak Effective % . | . . . . . . . Robots Rewired . | . . . . . . . Allies Hacked . | . . . . . . . Hacks Repelled . | . . . . . . . Allies | -11 -10 -10 -9 -9 -9 -8 -------- Run | Yrd Mat Min Mat Min Exi Min Total Allies . | . . . . . . . Largest Group . | . . . . . . . Highest-Rated Group . | . . . . . . . Highest-Rated Ally . | . . . . . . . Total Orders . | . . . . . . . Ally Attacks . | . . . . . . . Total Damage . | . . . . . . . Kills . | . . . . . . . Allies Corrupted . | . . . . . . . Allies Melted . | . . . . . . . Intel | -11 -10 -10 -9 -9 -9 -8 ------- Run | Yrd Mat Min Mat Min Exi Min Robot Analysis Total 2 | . 2 . . . . . Derelict Logs Recovered 1 | . . 1 . . . . Drone Launches . | . . . . . . . Drone Recoveries . | . . . . . . . Exploration | -11 -10 -10 -9 -9 -9 -8 ------------- Run | Yrd Mat Min Mat Min Exi Min Turns Passed 1938 | 66 576 294 434 180 329 59 Spaces Moved 1044 | 37 265 180 225 103 207 27 Core 4 | 4 . . . . . . Treads 1008 | 33 265 180 225 103 175 27 Legs . | . . . . . . . Wheels 32 | . . . . . 32 . Hover . | . . . . . . . Flight . | . . . . . . . Fastest Speed 50 | 50 160 160 160 160 125 160 Average Speed 158 | 148 160 160 160 160 154 160 Slowest Speed 160 | 160 160 160 160 160 160 160 Overloaded Moves . | . . . . . . . Propulsion Burnouts . | . . . . . . . Robots Hopped . | . . . . . . . Cave-ins Triggered . | . . . . . . . Exploration Rate (%) 34 | 3 55 53 26 33 59 14 Regions Visited 6 Branch Regions 4 Pre-discovered Areas . | . . . . . . . Known Exits Taken 2 | . 1 . 1 . . . Unknown Exits Taken 4 | 1 . 1 . 1 1 . Scrap Searched 1 | . . 1 . . . . Spaces Dug . | . . . . . . . Terrain Destroyed . | . . . . . . . Melee . | . . . . . . . Projectile . | . . . . . . . AOE . | . . . . . . . Terrain Rammed . | . . . . . . . Walls Destroyed . | . . . . . . . Machines Disabled . | . . . . . . . Actions | -11 -10 -10 -9 -9 -9 -8 --------- Run | Yrd Mat Min Mat Min Exi Min Total 1177 | 45 337 186 256 108 211 34 Wait 18 | . 15 . 3 . . . Move 1038 | 36 264 179 224 102 206 27 Hop . | . . . . . . . Pick Up 14 | 3 6 1 2 2 . . Fast Attach 13 | 6 1 2 3 . 1 . Attach 3 | . . 2 1 . . . Detach . | . . . . . . . Swap 9 | . 2 . 3 . 1 3 Drop 8 | . 3 2 2 . 1 . Fire 71 | . 45 . 17 4 2 3 Melee 1 | . . . . . . 1 Ram . | . . . . . . . Kick . | . . . . . . . Crush 2 | . 1 . 1 . . . Escape Stasis . | . . . . . . . Rewire . | . . . . . . . Trap . | . . . . . . . Miscellaneous . | . . . . . . . Route ------- -11/Scrapyard -10/Materials (discovered 2 exits: *Min x2) -10/Mines -9/Materials -9/Mines -9/Exiles -8/Mines History --------- Turn | Location | Event 15 | -11/Scrapyard | Discovered new exit (range 16) 67 | -11/Scrapyard | Entered Materials 130 | -10/Materials | Identified exit to Mines 315 | -10/Materials | Build established: Mutant 441 | -10/Materials | Destroyed 9 combat bots 643 | -10/Materials | Entered Mines 648 | -10/Mines | Met a Derelict bent on vengeance 861 | -10/Mines | Learned Materials interactive machine intel 922 | -10/Mines | Discovered new exit (range 10) 937 | -10/Mines | Entered Materials 937 | -9/Materials | Evolved 2 slots: Weapon x2 938 | -9/Materials | Loaded intel: 18 interactive machine locations 1310 | -9/Materials | Identified exit to Mines 1371 | -9/Materials | Entered Mines 1504 | -9/Mines | Build established: Tank 1544 | -9/Mines | Deemed a non-threat by the Exiles lab entrance 1544 | -9/Mines | Discovered new exit (range 5) 1551 | -9/Mines | Entered Exiles 1590 | -9/Exiles | Met 8R-AWN 1619 | -9/Exiles | Met EX-HEX 1663 | -9/Exiles | Met EX-BIN 1681 | -9/Exiles | Aligned with FarCom system 1683 | -9/Exiles | Given EX-Vault access code 1719 | -9/Exiles | Opened EX-Vault 1731 | -9/Exiles | Found Latent Energy Streamer 1768 | -9/Exiles | Warned to stay clear of 0b10 Research branches 1814 | -9/Exiles | Met EX-DEC 1839 | -9/Exiles | Attacked by the Exiles 1870 | -9/Exiles | Discovered new exit (range 10) 1880 | -9/Exiles | Left Exiles lab with Latent Energy Streamer 1880 | -9/Exiles | Entered Mines 1918 | -8/Mines | NK-0LA came to Exiles' defense 1936 | -8/Mines | System corruption reached 10% 1939 | -8/Mines | Self-destructed Last Messages --------------- K-01 Serf collects debris. Lgt. Armor Plating destroyed. K-01 Serf collects debris. Jacked NK-0LA... >>parse_system Reading system data... New IDs: Graviton Reactor Enh. Biometal Leg Exp. Heat Sink Thermal Barrier Exp. Energy Well Adv. EM Disruption Field NK-0LA's Tesla Doomcannon K-01 Serf collects debris. Med. Laser destroyed. Lgt. Treads destroyed. Ion Engine destroyed. Latent Energy Streamer destroyed. Lgt. Treads destroyed. Map ----- +----------------------------------------------------+ | ???????????????????????????????????? | | ???????????????????????????????????? | | ???????????????????????????????????? | | ???????????????????????????????????? | | ???????????????????????????????????? | | ???????????????????????????????????? | | ???????????????????????????????????? | | ???????????????????????????????????? | | ???????????????????????????????????? | | ???????????????????????????????????? | | ??????????? ?????????? ???????????? | | ??????????? ????????? ???????#???? | | ??????????? ????????? ?????? #???? | | ??????????? ?????????? ?????? ##??? | | ???????#### ?????????? ????? ???? | | ?????### ?????????? ???## #???? | | ????## = ?????????? ??# ##??? | | ????# =%%?????????? ## ## | | ????# *%[#??????????# | | ????? *%[##?????????# ?? | | ?????# ##????????# ???? | | ??????# ##???????# ??????? | | ???????# #??###### #????????? | | ????????# #??# #????????? | | ?????????# x #??# #### #????????? | | ?????????# @ #??# #??# #????????? | | ????????## ##??# #??# #????????? | | ????????# #???# #??# #????????? | | ????????# ##### #??# #????????? | | ????????## #??# #????????? | | ?????????## ######??# #????????? | | ??????????# ##???????# ###??????? | | ??????????# ###?????#### ##?????? | | ????????? s #???????# #?????? | | ???????? ####??????# #?????? | | ???????#???????????# ##?????? | | ???????????????????## ##??????? | | ????????????????????## ##???????? | | ?????????????????????## ##????????? | | ??????????????????????###??????????? | | ???????????????????????????????????? | | ???????????????????????????????????? | | ???????????????????????????????????? | | ???????????????????????????????????? | | ???????????????????????????????????? | | | | | | | | | | | +----------------------------------------------------+ Best States ------------- Heat Dissipation 28 Energy Generation 10 Energy Capacity 250 Matter Stores 300 Matter Capacity 300 Sight Range 16 Terrain Scan Density 10 Armor Coverage 150 Evasion (%) 40 Targeting Accuracy 6 Recoil Reduction 2 Item Schematics ----------------- None Robot Schematics ------------------ None Fabricated ------------ Nothing Alien Tech Used ----------------- None Achievements -------------- None Challenges ------------ None Game ------ Seed RefineryCloakingAutocannon Manual? 1 Play Time 00:13:14 Cumulative 430.6 hours Start 2024.07.17 @ 12:07:50 End 2024.07.17 @ 12:20:19 Sessions 1 Manual Loads 0 Difficulty Rogue Special Mode None Game No. 240 Rogue 240 Adventurer 0 Explorer 0 Win Type - Total 29 Types 18/2/2/3/1/1/1/1/0 Lore% 81 Gallery% 92 Achievement% 95 Wizard Run 0 Options --------- Layout 1 ASCII 0 Keyboard 0 Movement Numpad Keybinds 0 Fullscreen 1 Font 24/Smallcaps Map View 50x35 Zoom Use 0% Tactical HUD 1 Map Filters NONE Filters NONE Steam 1 RUN: 756a702b-179c-4382-ae07-3abc6be9845b